[Event "Italian-ch Teams-B 2022"]
[Site "Montesilvano"]
[Date "2022.04.21"]
[Round "4.1"]
[White "Drasko, Milan"]
[Black "Kaczur, Florian"]
[Result "0-1"]
[ECO "A43"]
[WhiteElo "2398"]
[BlackElo "2481"]
[Annotator "TA"]
[PlyCount "96"]
[EventDate "2022.04.19"]
[EventType "team-tourn"]
[EventCountry "ITA"]
[SourceTitle "playchess.com"]
[Source "ChessBase"]
[SourceQuality "1"]
[TimeControl "40/5400+30:1800+30"]

{[%evp 12,96,24,10,6,9,35,18,18,-8,0,0,0,0,0,-8,-5,-38,-9,-56,-58,-46,-30,-23,-16,-20,-23,-39,-20,-26,-27,-122,-119,-125,-119,-125,-110,-252,-249,-271,-271,-281,-270,-280,-284,-263,-202,-243,-241,-349,-326,-268,-163,-154,-145,-278,-251,-273,-255,-372,-222,-483,-478,-472,-442,-716,-714,-702,-702,-697,-612,-755,-738,-857,-841,-830,-826,-1099,-1062,-1062,-1057,-29972,-29966,-29973,-29974,-29968,-2245]} 1. Nf3 {[%emt 0:00:07]} g6 {[%emt 0:00:54]} 2. g3 {[%emt 0:00:15]} Bg7 {[%emt 0:00:19]} 3. d4 {[%emt 0:00:27]} c5 {[%emt 0:01:36]} 4. d5 {[%emt 0:01:58]} b5 {[%emt 0:02:35]} 5. Bg2 {[%emt 0:05:21]} d6 {[%emt 0:01:03]} 6. O-O {[%emt 0:01:05]} Nf6 {[%emt 0:00:14]} 7. Re1 {[%emt 0:01:10]} O-O {[%emt 0:01:13] A43: Schmid Benoni.} 8. e4 {[%emt 0:00:13]} Bb7 {[%emt 0:02:28]} 9. c4 {[%emt 0:14:25]} bxc4 {[%emt 0:07:44] The position is equal.} 10. Nfd2 {[%emt 0:09:30]} Ba6 {[%emt 0:11:25]} 11. Na3 {[%emt 0:10:19]} Nbd7 {[%emt 0:02:41]} 12. Naxc4 {[%emt 0:11:45]} Nb6 {[%emt 0:03:28] [#]} 13. Qc2 $146 {[%emt 0:14:21]} ({Predecessor:} 13. Na5 Qc7 14. Ndb3 Nfd7 15. Nc6 Ne5 16. Nxe5 Bxe5 17. Qc2 Rab8 18. Bh6 Rfe8 19. Nd2 {1-0 (46) Soldano,G-Neusch,J ICCF email 2009}) 13... Rb8 {[%emt 0:07:52]} 14. Bf1 {[%emt 0:05:59]} Nxc4 {[%emt 0:04:16]} 15. Bxc4 {[%emt 0:00:18]} (15. Nxc4 $11 Qc8 16. Rb1) 15... Qc8 $15 {[%emt 0:05:18]} 16. Qd3 {[%emt 0:11:39]} Bxc4 {[%emt 0:04:37]} 17. Nxc4 {[%emt 0:00:01]} Qh3 {[%emt 0:00:29]} 18. f3 {[%emt 0:03:13] Prevents Ng4.} Nd7 {[%emt 0:01:43]} 19. Rb1 {[%emt 0:04:21]} Ne5 {[%emt 0:03:15]} 20. Nxe5 {[%emt 0:00:06]} Bxe5 {[%emt 0:00:05]} 21. Qf1 {[%emt 0:02:06]} (21. b3 $11) 21... Bd4+ $1 $40 {[%emt 0:02:26][%mdl 128] Black has strong attack.} 22. Kh1 {[%emt 0:00:01] [#]} Qxf1+ {[%emt 0:12:46]} 23. Rxf1 {[%emt 0:00:01]} Rb6 {[%emt 0:00:06] &Nero is more active.} 24. Bh6 {[%emt 0:01:42] Now White is beyond hope.} (24. b3 $17 {was necessary.}) 24... Rfb8 $19 {[%emt 0:01:04]} 25. b3 {[%emt 0:00:23] [#]} Ra6 $1 {[%emt 0:00:11]} 26. Rfd1 {[%emt 0:01:08]} Rxa2 {[%emt 0:02:53]} 27. b4 {[%emt 0:00:04]} Rb6 {[%emt 0:01:01]} 28. bxc5 {[%emt 0:00:19]} Bxc5 {[%emt 0:00:29]} 29. Rxb6 {[%emt 0:00:04]} axb6 {[%emt 0:00:25][%mdl 4096] Endgame KRB-KRB} ({And not} 29... Bxb6 30. Rc1 Bc5 31. Rb1 $11) 30. f4 {[%emt 0:00:23]} (30. Rd2 $142 Rxd2 31. Bxd2) 30... f6 {[%emt 0:00:21]} 31. e5 {[%emt 0:00:16]} Kf7 {[%emt 0:06:23]} (31... fxe5 $2 32. fxe5 dxe5 33. Rf1 $19) 32. e6+ {[%emt 0:01:46]} Ke8 {[%emt 0:00:01] aiming for ...b5.} 33. f5 {[%emt 0:00:11]} (33. Rb1 $17) 33... gxf5 {[%emt 0:04:47]} 34. Rb1 {[%emt 0:00:20]} Kd8 {[%emt 0:00:30]} 35. Bf8 {[%emt 0:00:38]} (35. h3 {is a better defense.}) 35... Be3 {[%emt 0:02:17]} ({Not} 35... Rd2 $2 36. Ra1 Rxd5 37. Ra8+ Kc7 38. Ra7+ Kc6 39. Rxe7 $19) (35... Ra5 $142 {And now ...b5 would win.} 36. Bh6 b5) 36. Rb4 $2 {[%emt 0:00:24]} (36. Rb3 {was forced.} Bc5 37. Rb1) 36... Ke8 {[%emt 0:04:58]} 37. Bg7 {[%emt 0:00:02]} f4 {[%emt 0:00:27]} 38. gxf4 {[%emt 0:01:24]} (38. Rc4 $142 Kd8 39. gxf4) 38... Ra1+ {[%emt 0:00:44]} 39. Kg2 {[%emt 0:00:20]} Bc5 {[%emt 0:00:10]} 40. Rb2 {[%emt 0:00:15]} Rg1+ {[%emt 0:00:15]} 41. Kf3 {[%emt 0:30:08][%cal Ob2a2] Strongly threatening Ra2!} Rxg7 {[%emt 0:30:24] KRB-KR} 42. Ra2 {[%emt 0:00:16]} Kd8 {[%emt 0:00:04] Threatens to win with ...b5.} 43. Ra8+ {[%emt 0:00:14]} Kc7 {[%emt 0:00:02] Hoping for ...b5.} 44. Ra7+ {[%emt 0:00:08]} Kb8 {[%emt 0:00:05]} 45. Rd7 {[%emt 0:00:09]} b5 {[%emt 0:03:59] ( -> ...b4)} 46. Ke4 {[%emt 0:00:15]} Kc8 {[%emt 0:00:19] Black mates.} 47. Kd3 {[%emt 0:03:20]} f5 {[%emt 0:00:00]} 48. Kc3 {[%emt 0:00:00]} h5 {[%emt 0:00:00] Weighted Error Value: White=0.64/Black=0.11 (very precise)} 0-1

[Event "Italian-ch Teams-B 2022"]
[Site "Montesilvano"]
[Date "2022.04.21"]
[Round "4.1"]
[White "Lazic, Miroljub"]
[Black "Fier, Alexandr"]
[Result "1/2-1/2"]
[ECO "C00"]
[WhiteElo "2322"]
[BlackElo "2583"]
[Annotator "TA"]
[PlyCount "40"]
[EventDate "2022.04.19"]
[EventType "team-tourn"]
[EventCountry "ITA"]
[SourceTitle "playchess.com"]
[Source "ChessBase"]
[SourceQuality "1"]
[TimeControl "40/5400+30:1800+30"]

{[%evp 16,40,-7,-3,0,-15,0,-6,0,-37,-18,-28,32,40,39,39,38,20,44,51,56,-23,-14,-24,-18,-14,-9]} 1. Nf3 {[%emt 0:00:03]} d5 {[%emt 0:00:06]} 2. g3 {[%emt 0:00:06]} Nf6 {[%emt 0:00:04]} 3. Bg2 {[%emt 0:00:04]} e6 {[%emt 0:00:04]} 4. O-O {[%emt 0:00:11]} Be7 {[%emt 0:00:03]} 5. d3 {[%emt 0:00:10]} c5 {[%emt 0:00:05]} 6. Nbd2 {[%emt 0:00:19]} Nc6 {[%emt 0:00:05]} 7. e4 {[%emt 0:00:07]} O-O {[%emt 0:00:04]} 8. Re1 {[%emt 0:00:22]} Qc7 {[%emt 0:00:05]} 9. Qe2 {[%emt 0:02:26]} b5 {[%emt 0:00:04] C00: French: Unusual White 2nd moves.} 10. Nf1 {[%emt 0:00:39]} d4 {[%emt 0:11:02]} 11. e5 {[%emt 0:06:57]} Nd5 {[%emt 0:00:05]} 12. h4 {[%emt 0:00:05] [#]} Bd7 $146 {[%emt 0:11:25]} ({Predecessor:} 12... Bb7 13. N1h2 Rfd8 14. Ng4 Rac8 15. Ng5 h6 16. Nxf7 Kxf7 17. Nxh6+ Ke8 18. Qh5+ Kd7 19. Bxd5 gxh6 20. Bxe6+ Kxe6 21. Qg6+ Kd7 22. e6+ {1-0 (22) Boros,D (2462)-Ryzhkov,V (2144) Erice 2015}) 13. Bg5 {[%emt 0:03:47]} f6 {[%emt 0:05:46]} (13... Rab8 $11) 14. exf6 $14 {[%emt 0:00:36]} gxf6 {[%emt 0:00:04]} 15. Bh6 {[%emt 0:01:59][%cal Of3d4] [#] Nxd4! is the strong threat.} Rf7 {[%emt 0:00:05]} 16. N3d2 {[%emt 0:05:42]} f5 {[%emt 0:05:43]} 17. Bxd5 {[%emt 0:03:24]} exd5 {[%emt 0:00:03]} 18. Bf4 {[%emt 0:00:09]} ({White should play} 18. Nf3 $1 $14) 18... Bd6 $11 {[%emt 0:00:29]} 19. Bxd6 {[%emt 0:00:06]} Qxd6 {[%emt 0:00:03]} 20. f4 {[%emt 0:00:12]} Re8 {[%emt 0:06:06] Weighted Error Value: White=0.18 (very precise) /Black=0.22 (precise)} 1/2-1/2

[Event "Italian-ch Teams-B 2022"]
[Site "Montesilvano"]
[Date "2022.04.21"]
[Round "4.2"]
[White "Genocchio, Daniele"]
[Black "Shytaj, Luca"]
[Result "1/2-1/2"]
[ECO "B31"]
[WhiteElo "2358"]
[BlackElo "2460"]
[Annotator "TA"]
[PlyCount "49"]
[EventDate "2022.04.19"]
[EventType "team-tourn"]
[EventCountry "ITA"]
[SourceTitle "playchess.com"]
[Source "ChessBase"]
[SourceQuality "1"]
[TimeControl "40/5400+30:1800+30"]

{[%evp 21,49,0,0,9,46,32,69,37,69,44,69,29,69,53,76,76,92,91,86,89,119,106,111,106,144,73,74,66,145,129]} 1. e4 {[%emt 0:06:52]} c5 {[%emt 0:00:35]} 2. Nf3 {[%emt 0:01:37]} Nc6 {[%emt 0:00:36]} 3. Bb5 {[%emt 0:11:35]} g6 {[%emt 0:02:12]} 4. O-O {[%emt 0:00:41]} Bg7 {[%emt 0:00:30]} 5. Re1 {[%emt 0:02:27]} Nf6 {[%emt 0:18:03][%cal Bg8f6,Bf6d5,Bd5c7,Bc7e6][%mdl 32]} 6. e5 {[%emt 0:01:46]} Nd5 {[%emt 0:00:44]} 7. Nc3 {[%emt 0:02:31][%cal Bb1c3,Bc3e4,Be4g5][%mdl 32]} Nc7 {[%emt 0:03:00]} 8. Bxc6 {[%emt 0:00:08]} dxc6 {[%emt 0:00:20]} 9. Ne4 {[%emt 0:01:14]} Ne6 {[%emt 0:02:02]} 10. d3 {[%emt 0:02:37]} O-O {[%emt 0:01:35]} 11. h3 {[%emt 0:21:46]} Qc7 {[%emt 0:07:02]} 12. Neg5 {[%emt 0:21:25] B31: Sicilian: 2...Nc6 3 Bb5 g6.} Rd8 {[%emt 0:05:53][%cal Oc5c4] [#]} 13. b3 $146 {[%emt 0:06:42]} ({Predecessor:} 13. Nxe6 Bxe6 14. Qe2 h6 15. b3 Rd7 16. Bb2 Rad8 17. Qe3 Rd5 18. a4 Bf5 19. Nh4 Bc8 {0-1 (35) Spangenberg,H (2220)-Valiente,C (2370) Buenos Aires 1991}) 13... b6 {[%emt 0:10:56]} 14. a4 {[%emt 0:10:58] White is slightly better.} a5 {[%emt 0:02:39]} 15. Qe2 {[%emt 0:02:08]} Ra7 {[%emt 0:05:03]} 16. Qe4 {[%emt 0:02:56]} Nxg5 {[%emt 0:37:20]} 17. Bxg5 {[%emt 0:00:22]} h6 {[%emt 0:00:00]} 18. Bd2 {[%emt 0:01:08] &Bianco is more active.} Bf5 {[%emt 0:00:00]} 19. Qh4 {[%emt 0:00:26]} g5 {[%emt 0:00:00]} 20. Qg3 {[%emt 0:00:03]} Rd5 {[%emt 0:00:00]} 21. Re2 {[%emt 0:00:50]} Qd7 {[%emt 0:00:00]} 22. Bc3 {[%emt 0:00:35]} Qe6 {[%emt 0:00:00] [#]} 23. h4 {[%emt 0:00:37]} (23. Nd2 $142 $1) 23... g4 $16 {[%emt 0:00:00]} 24. Nd2 {[%emt 0:00:06]} b5 {[%emt 0:00:00] Against Nc4} (24... h5 $1 $14) 25. Nf1 {[%emt 0:00:30] Weighted Error Value: White=0.16 (very precise) /Black=0.27 (precise)} 1/2-1/2

[Event "Italian-ch Teams-B 2022"]
[Site "Montesilvano"]
[Date "2022.04.21"]
[Round "4.2"]
[White "Sibilio, Mario"]
[Black "Paltrinieri, Nicholas"]
[Result "1-0"]
[ECO "B06"]
[WhiteElo "2292"]
[BlackElo "2344"]
[Annotator "TA"]
[PlyCount "67"]
[EventDate "2022.04.19"]
[EventType "team-tourn"]
[EventCountry "ITA"]
[SourceTitle "playchess.com"]
[Source "ChessBase"]
[SourceQuality "1"]
[TimeControl "40/5400+30:1800+30"]

{[%evp 9,67,19,20,16,20,15,43,27,35,23,40,42,29,29,49,38,76,77,149,176,168,174,236,225,273,65,65,65,65,66,108,68,226,222,306,285,362,254,255,253,255,246,371,306,570,573,629,625,615,596,764,759,904,886,855,854,785,728,858,836]} 1. Nf3 {[%emt 0:02:17]} g6 {[%emt 0:00:06]} 2. e4 {[%emt 0:01:24]} Bg7 {[%emt 0:00:05]} 3. d4 {[%emt 0:00:38][%cal Bd2d4,Bd4d5][%mdl 32]} d6 {[%emt 0:00:05]} 4. h3 {[%emt 0:02:02]} Nd7 {[%emt 0:00:27]} 5. c4 {[%emt 0:09:18]} e5 {[%emt 0:06:12]} 6. d5 {[%emt 0:02:21] B06: Modern Defence.} Ne7 {[%emt 0:02:55]} 7. Nc3 {[%emt 0:07:30]} a5 {[%emt 0:02:42]} 8. g4 {[%emt 0:09:58] White is slightly better.} Nc5 {[%emt 0:09:24]} 9. Be3 {[%emt 0:05:30] [#]} c6 $146 {[%emt 0:01:09]} ({Predecessor:} 9... O-O 10. g5 f5 11. gxf6 Bxf6 12. Be2 Bg7 13. Qd2 Kh8 14. O-O-O Ng8 15. Rdg1 Qe8 {0-1 (50) Smit,E-Mellegers,J Hengelo 1994}) 10. dxc6 {[%emt 0:09:31]} Nxc6 {[%emt 0:04:23]} 11. Qd2 {[%emt 0:00:20]} Nb4 {[%emt 0:32:35]} 12. Rd1 {[%emt 0:17:30] Threatens to win with Bxc5.} Be6 {[%emt 0:08:16]} 13. Be2 {[%emt 0:06:47]} h5 {[%emt 0:06:26]} (13... Qe7 $142) 14. gxh5 {[%emt 0:03:12]} Rxh5 {[%emt 0:00:27][%cal Oe6g4]} 15. Ng5 $1 {[%emt 0:00:28]} Rh8 {[%emt 0:01:04]} (15... Rh4 $142 16. Nb5 Ke7) 16. Nb5 $1 $18 {[%emt 0:00:53]} Ke7 {[%emt 0:08:02]} 17. Nxd6 $2 {[%emt 0:06:44]} (17. O-O $18) 17... Ncd3+ $14 {[%emt 0:00:27]} 18. Bxd3 {[%emt 0:01:38]} Qxd6 {[%emt 0:00:08]} 19. Nxe6 {[%emt 0:00:32]} Kxe6 {[%emt 0:03:38]} 20. Qc3 {[%emt 0:02:54] Hoping for Be2.} Rad8 $2 {[%emt 0:03:38] This costs Black the game.} (20... Nxd3+ $14 21. Qxd3 (21. Rxd3 Qb4 $16) 21... Qxd3 22. Rxd3 Bh6) 21. Be2 $18 {[%emt 0:02:19]} Qc6 {[%emt 0:00:13] [#]} 22. Rd5 {[%emt 0:00:11][%mdl 512]} Qa4 {[%emt 0:03:40]} (22... Ke7 23. Bc5+) 23. O-O {[%emt 0:02:55] f4 is the strong threat.} Qc2 {[%emt 0:03:38] [#]} (23... Nxd5 $2 24. cxd5+ (24. exd5+ Kd7 $16) 24... Ke7 25. Qc5+ Rd6 26. Bb5 Qxe4 27. Qc7+ Kf8 28. Qc8+ Ke7 29. Qc7+ Kf8 30. Qc8+ Ke7 31. Bg5+ f6 32. Qc7+ Kf8 33. Qxd6+ $18) 24. Qxc2 {[%emt 0:01:10] Really sharp!} (24. Rxa5 $2 Qxe2 25. Bg5 {[#]} (25. Qxb4 $2 Rxh3 26. Qb6+ Rd6 $19) 25... Qxe4 $1 $19) 24... Nxc2 {[%emt 0:00:02]} 25. Bb6 {[%emt 0:00:06]} Nd4 {[%emt 0:00:16]} (25... Rdf8 $142 26. Rfd1 (26. Bxa5 Nd4 $18) 26... Nd4) 26. Bg4+ {[%emt 0:01:44]} ({Weaker is} 26. Bxd8 Nxe2+ 27. Kh2 Nf4 $16) 26... f5 $2 {[%emt 0:02:11]} (26... Ke7 {might work better.} 27. Bxd8+ Rxd8 28. Rxa5 f5) 27. Rxd8 {[%emt 0:00:30] White is clearly winning.} fxg4 {[%emt 0:00:35]} 28. Rxh8 {[%emt 0:00:15]} Bxh8 {[%emt 0:00:29]} 29. hxg4 {[%emt 0:00:34] KRB-KBN} Ne2+ {[%emt 0:00:22]} 30. Kg2 {[%emt 0:00:18]} a4 {[%emt 0:00:03]} 31. Rh1 {[%emt 0:00:25]} Bf6 {[%emt 0:00:28]} 32. Kf3 {[%emt 0:00:35]} Nf4 {[%emt 0:01:03]} 33. Rd1 {[%emt 0:00:33]} Be7 {[%emt 0:00:59]} 34. Be3 {[%emt 0:00:00] Weighted Error Value: White=0.25 (precise) /Black=0.56} 1-0

[Event "Italian-ch Teams-B 2022"]
[Site "Montesilvano"]
[Date "2022.04.21"]
[Round "4.3"]
[White "D'Amore, Carlo"]
[Black "Quinn, Mark"]
[Result "1/2-1/2"]
[ECO "A81"]
[WhiteElo "2406"]
[BlackElo "2365"]
[Annotator "TA"]
[PlyCount "157"]
[EventDate "2022.04.19"]
[EventType "team-tourn"]
[EventCountry "ITA"]
[SourceTitle "playchess.com"]
[Source "ChessBase"]
[SourceQuality "1"]
[TimeControl "40/5400+30:1800+30"]

{[%evp 9,157,10,30,22,33,45,29,24,29,27,33,33,31,28,76,56,48,54,63,38,76,55,70,64,67,51,64,68,68,74,55,13,20,17,21,21,47,39,51,52,98,98,111,107,105,108,96,95,93,100,98,85,105,99,106,43,99,99,99,99,99,99,98,96,271,262,262,260,222,214,313,305,450,439,438,413,439,432,386,327,897,664,640,607,1009,1009,1009,970,726,730,1009,1009,997,968,552,339,489,470,932,922,1001,993,976,305,235,234,234,234,513,363,384,0,0,0,0,0,0,0,0,0,0,0,0,0,0,0,0,0,0,0,0,0,0,0,0,0,0,0,0,0,0,0,0,0,0,0,0,0,0,0]} 1. Nf3 {[%emt 0:00:04]} f5 {[%emt 0:03:42]} 2. d4 {[%emt 0:01:01]} Nf6 {[%emt 0:00:27]} 3. g3 {[%emt 0:00:18]} g6 {[%emt 0:00:13]} 4. c3 {[%emt 0:00:15]} Bg7 {[%emt 0:00:47]} 5. Qb3 {[%emt 0:00:04]} c6 {[%emt 0:05:26]} 6. Bg2 {[%emt 0:00:44]} Qb6 {[%emt 0:02:49]} 7. Qc2 {[%emt 0:01:40]} a5 {[%emt 0:09:47]} 8. Nbd2 {[%emt 0:00:45]} d5 {[%emt 0:00:21]} 9. c4 {[%emt 0:07:42]} Na6 {[%emt 0:03:39]} 10. a3 {[%emt 0:02:58]} O-O {[%emt 0:02:18]} 11. O-O {[%emt 0:02:39]} Kh8 {[%emt 0:04:17]} (11... Ne4 $11) 12. b3 {[%emt 0:02:21]} Ne4 {[%emt 0:02:05]} 13. e3 {[%emt 0:00:22]} Be6 {[%emt 0:04:03]} 14. Bb2 {[%emt 0:01:12]} Qd8 {[%emt 0:10:22]} 15. Rad1 {[%emt 0:03:06]} Nxd2 {[%emt 0:13:34]} 16. Rxd2 {[%emt 0:07:02]} a4 {[%emt 0:03:44]} 17. Ng5 {[%emt 0:11:22]} Bg8 {[%emt 0:03:50]} 18. cxd5 {[%emt 0:00:15]} Bxd5 {[%emt 0:01:49]} 19. Bxd5 {[%emt 0:00:50]} Qxd5 {[%emt 0:00:14]} 20. Qc4 {[%emt 0:05:12]} Nc7 {[%emt 0:05:14]} ({Don't do} 20... axb3 21. Qxd5 cxd5 22. Rd3 $16) 21. Qxd5 {[%emt 0:00:13]} Nxd5 {[%emt 0:00:23]} 22. Ne6 {[%emt 0:00:09]} Rf6 {[%emt 0:01:06]} 23. Nc5 $1 {[%emt 0:00:37]} axb3 {[%emt 0:02:33]} 24. Nxb7 {[%emt 0:00:44]} Nb6 {[%emt 0:00:49]} (24... Rff8 $14) 25. Rc1 $16 {[%emt 0:00:39]} Na4 {[%emt 0:00:23]} 26. Nc5 {[%emt 0:00:30]} Nxc5 {[%emt 0:10:07]} 27. Rxc5 {[%emt 0:00:40]} Rd6 {[%emt 0:00:17][%cal Oe7e5]} 28. f4 {[%emt 0:03:38] Against e5} Kg8 {[%emt 0:03:42]} 29. Rd3 {[%emt 0:00:28]} Rb8 {[%emt 0:00:14]} 30. Kf2 {[%emt 0:02:05]} Kf7 {[%emt 0:00:32]} 31. Rcc3 {[%emt 0:08:15]} Rb6 {[%emt 0:02:19]} 32. Rxb3 {[%emt 0:05:49]} (32. Ke2 $16) 32... Rxb3 {[%emt 0:00:09]} (32... c5 $1 $14) 33. Rxb3 $16 {[%emt 0:00:06]} c5 {[%emt 0:00:16][%cal Rc5d4]} 34. a4 {[%emt 0:01:01]} cxd4 {[%emt 0:00:49]} 35. Bxd4 {[%emt 0:01:04]} Bxd4 {[%emt 0:00:07]} 36. exd4 {[%emt 0:00:04]} Ra6 $2 {[%emt 0:02:39]} (36... Rxd4 $16 {was necessary.} 37. Ra3 (37. a5 Ra4 $11) 37... Ke6) 37. Ra3 $1 $18 {[%emt 0:00:21]} Ke6 {[%emt 0:00:40]} 38. Ke3 {[%emt 0:00:09]} Kd5 {[%emt 0:00:12]} 39. Kd3 $1 {[%emt 0:00:13]} h6 {[%emt 0:00:34]} (39... Ra5 $142 40. Kc3 Kd6) 40. a5 $18 {[%emt 0:00:56]} g5 {[%emt 0:00:47]} (40... h5 $142 41. Ra2 e6) 41. Ra1 {[%emt 0:31:54]} gxf4 {[%emt 0:32:27]} 42. gxf4 {[%emt 0:00:07]} h5 {[%emt 0:00:20]} 43. Ra2 {[%emt 0:06:36]} h4 {[%emt 0:00:45]} 44. Ra1 {[%emt 0:02:36]} h3 $2 {[%emt 0:00:00]} (44... Kc6 45. Rc1+ Kb7) 45. Ra2 $18 {[%emt 0:00:00]} (45. Re1 Kd6 $18) 45... Kc6 {[%emt 0:00:00]} 46. Kc4 {[%emt 0:00:00]} e6 {[%emt 0:00:00]} 47. Ra3 {[%emt 0:00:00]} Kc7 {[%emt 0:00:00]} 48. Kb5 {[%emt 0:00:00]} Rd6 {[%emt 0:00:00]} 49. Ra4 {[%emt 0:00:00]} Kb7 {[%emt 0:00:00]} 50. a6+ {[%emt 0:00:00]} Ka7 {[%emt 0:00:00] [#]} 51. Kc5 $1 {[%emt 0:01:30]} Rd5+ {[%emt 0:00:00]} 52. Kc4 {[%emt 0:00:30]} Rd8 {[%emt 0:00:00]} (52... Rd6 $142 53. Ra3 Rc6+ 54. Kb5 Rd6) 53. Ra3 $18 {[%emt 0:02:53]} Rc8+ {[%emt 0:01:32]} (53... Rd6 $142 54. Rxh3 Kxa6) 54. Kb5 $18 {[%emt 0:00:18]} Rb8+ {[%emt 0:00:46]} 55. Kc6 {[%emt 0:00:37]} Rd8 {[%emt 0:00:15]} 56. Kc5 $2 {[%emt 0:00:12]} (56. Rxh3 Rxd4 57. Rf3) 56... Rd5+ $18 {[%emt 0:01:10]} 57. Kc4 {[%emt 0:00:14]} Rd6 {[%emt 0:00:32]} 58. Rxh3 {[%emt 0:01:09]} Rxa6 $2 {[%emt 0:00:42]} (58... Kxa6 59. Rh8 Rc6+ 60. Kd3 Rc1) 59. Re3 {[%emt 0:05:00] Strongly threatening d5.} Kb7 {[%emt 0:00:30] [#]} 60. h4 $2 {[%emt 0:01:39]} (60. d5 $1 $18 {[%cal Rd5e6]} exd5+ 61. Kxd5) 60... Kc7 $1 $11 {[%emt 0:00:44]} 61. h5 {[%emt 0:00:27] And now h6 would win.} Kd6 {[%emt 0:00:56]} 62. h6 {[%emt 0:08:54] Threatens to win with h7.} Ra4+ $1 {[%emt 0:01:13]} 63. Kb3 {[%emt 0:04:38]} Ra7 {[%emt 0:00:12]} 64. Rh3 {[%emt 0:00:13]} Rh7 {[%emt 0:00:30]} 65. Kc4 {[%emt 0:01:07][%cal Od4d5]} Rc7+ {[%emt 0:00:10]} 66. Kd3 {[%emt 0:00:24] h7 would kill now.} Rh7 {[%emt 0:00:05]} 67. Rh4 {[%emt 0:01:03]} Kd5 {[%emt 0:03:52]} 68. Rh5 {[%emt 0:00:28]} Kd6 {[%emt 0:00:00]} 69. Ke2 {[%emt 0:01:57]} Kd5 {[%emt 0:00:00]} 70. Ke3 {[%emt 0:00:04]} Kc4 {[%emt 0:00:00]} 71. Rh1 {[%emt 0:01:50]} Kd5 {[%emt 0:00:00]} 72. Rh2 {[%emt 0:00:40]} Kd6 {[%emt 0:00:00]} 73. Rh1 {[%emt 0:00:41]} Kd5 {[%emt 0:00:00]} 74. Rh5 {[%emt 0:00:05]} Kc4 {[%emt 0:00:00]} 75. Rh1 {[%emt 0:01:00]} Kd5 {[%emt 0:00:00]} 76. Kd3 {[%emt 0:00:44]} Kd6 {[%emt 0:00:00]} 77. Kc4 {[%emt 0:00:29][%cal Od4d5] d5! is the strong threat.} Rc7+ {[%emt 0:00:00]} 78. Kd3 {[%emt 0:00:43] Intending h7 and mate.} Rh7 {[%emt 0:00:00]} 79. Kc4 {[%emt 0:01:45]} 1/2-1/2

[Event "Italian-ch Teams-B 2022"]
[Site "Montesilvano"]
[Date "2022.04.21"]
[Round "4.3"]
[White "Santagati, Alessandro"]
[Black "Tomba, Ivan"]
[Result "1/2-1/2"]
[ECO "D00"]
[WhiteElo "2301"]
[BlackElo "2291"]
[Annotator "TA"]
[PlyCount "85"]
[EventDate "2022.04.19"]
[EventType "team-tourn"]
[EventCountry "ITA"]
[SourceTitle "playchess.com"]
[Source "ChessBase"]
[SourceQuality "1"]
[TimeControl "40/5400+30:1800+30"]

{[%evp 9,85,0,5,-8,-5,-18,-16,-33,7,-50,0,0,7,0,0,0,0,0,0,0,0,0,0,0,0,0,0,0,54,0,0,0,0,0,0,0,-8,-9,-18,-28,-10,-11,-11,-5,0,-8,-15,-17,0,-34,0,0,0,0,0,0,0,0,0,0,0,0,0,0,8,0,0,0,0,0,0,0,0,0,0,-8,0,0]} 1. d4 {[%emt 0:00:05]} d5 {[%emt 0:00:05]} 2. Bf4 {[%emt 0:00:09]} Nf6 {[%emt 0:00:07]} 3. e3 {[%emt 0:00:04]} c5 {[%emt 0:00:11]} 4. dxc5 {[%emt 0:02:54]} Nc6 {[%emt 0:02:01]} 5. Bb5 {[%emt 0:01:37]} Bd7 {[%emt 0:29:20]} 6. Ne2 {[%emt 0:10:38] D00: 1 d4 d5: Unusual lines.} e6 $1 {[%emt 0:01:13]} 7. Bxc6 {[%emt 0:01:02]} Bxc6 {[%emt 0:00:04] [#]} 8. Qd4 $146 {[%emt 0:07:27]} ({Predecessor:} 8. b4 a5 9. c3 axb4 10. cxb4 b6 11. Nd4 Ba4 12. Qc1 bxc5 13. bxc5 Qa5+ 14. Nd2 {½-½ (52) Vlassow,V (2238)-Usov,A (2151) Bryansk 2021}) 8... a5 {[%emt 0:04:25][%mdl 1024] Black has compensation.} (8... Nd7 $5 {[%cal Rd7c5]}) 9. a3 {[%emt 0:01:03]} (9. O-O $11) 9... Ne4 {[%emt 0:03:14]} (9... Nd7 $1 $15) 10. b4 $11 {[%emt 0:03:49]} f6 {[%emt 0:12:01] Strongly threatening ...e5.} 11. f3 {[%emt 0:16:20]} e5 {[%emt 0:01:48]} 12. Bxe5 {[%emt 0:00:08]} fxe5 {[%emt 0:00:05]} 13. Qxe5+ {[%emt 0:00:08]} Qe7 {[%emt 0:09:02]} 14. Qxe7+ {[%emt 0:00:50]} Bxe7 {[%emt 0:00:02]} 15. b5 {[%emt 0:07:16]} Bxb5 {[%emt 0:00:12] [#] White must now prevent ...Bf6.} 16. fxe4 {[%emt 0:00:14]} dxe4 {[%emt 0:06:04]} 17. Nd4 {[%emt 0:02:51]} Ba6 {[%emt 0:01:37] A strong pair of Bishops.} 18. Nc3 {[%emt 0:04:17]} Bg5 {[%emt 0:08:33]} ({Black should try} 18... Bxc5 $11 19. Nxe4 Bb6) 19. Nxe4 {[%emt 0:01:42]} (19. Ne6 $14 Bf6 20. Nc7+ Kd7 21. N7d5) 19... Bxe3 {[%emt 0:00:32]} 20. Nf5 {[%emt 0:01:20]} O-O $1 {[%emt 0:00:40]} 21. Nxe3 {[%emt 0:04:23] [#] Hoping for Nd6.} Rae8 {[%emt 0:00:04]} 22. O-O-O {[%emt 0:00:42] Rd4 is the strong threat.} Rxe4 {[%emt 0:00:06]} 23. Rhe1 {[%emt 0:11:25]} Rfe8 {[%emt 0:00:22]} 24. Kd2 {[%emt 0:00:42]} R4e5 {[%emt 0:02:30]} 25. g4 {[%emt 0:05:52]} Rd8+ {[%emt 0:09:10]} 26. Kc1 {[%emt 0:00:09]} Rde8 {[%emt 0:00:07]} 27. Kd2 {[%emt 0:00:56]} g6 {[%emt 0:00:33]} 28. c4 {[%emt 0:05:57]} Rxc5 {[%emt 0:02:14]} 29. Kd3 {[%emt 0:04:26] Inhibits Re4.} Rce5 {[%emt 0:01:30]} 30. Nc2 {[%emt 0:01:32] The position is equal.} Rxe1 {[%emt 0:03:13]} 31. Rxe1 {[%emt 0:00:12][%mdl 4096] Endgame KRB-KRN} Rc8 {[%emt 0:00:27]} 32. Re4 {[%emt 0:01:09]} b5 {[%emt 0:00:58]} 33. cxb5 {[%emt 0:00:45]} Bxb5+ {[%emt 0:00:04]} 34. Kd2 {[%emt 0:00:17]} Bc4 {[%emt 0:02:28]} 35. h4 {[%emt 0:02:29]} Kf7 {[%emt 0:00:22]} 36. Re5 {[%emt 0:01:11]} a4 {[%emt 0:00:49]} 37. Ra5 {[%emt 0:00:26]} Bb3 {[%emt 0:00:47]} 38. Ra7+ {[%emt 0:00:14]} Kf6 {[%emt 0:00:53]} 39. Nd4 {[%emt 0:01:09]} h5 {[%emt 0:01:22]} 40. gxh5 {[%emt 0:01:36]} gxh5 {[%emt 0:00:07]} 41. Ra5 {[%emt 0:30:51]} Rd8 {[%emt 0:20:30]} 42. Kd3 {[%emt 0:00:00]} Bd1 {[%emt 0:00:36]} 43. Rf5+ {[%emt 0:01:43] A balanced but interesting game.  Weighted Error Value: White=0.08 (flawless) /Black=0.10 (very precise)} 1/2-1/2